[Event "Early-Titled-Tuesday-Blitz-April-23-2024"]
[Site "Chess.com"]
[Date "2024.04.23"]
[Round "7"]
[White "Naruna_Chan"]
[Black "Herzog2012"]
[Result "0-1"]
[WhiteElo "2349"]
[BlackElo "2552"]
[TimeControl "180+1"]
[EndTime "9:20:02 PDT"]
[Termination "Herzog2012 won by checkmate"]

1. e4 {[%clk 0:02:57.9]} 1... c5 {[%clk 0:02:46]} 2. c3 {[%clk 0:02:55.6]} 2...
Nf6 {[%clk 0:02:45.5]} 3. e5 {[%clk 0:02:55.5]} 3... Nd5 {[%clk 0:02:45.9]} 4.
Bc4 {[%clk 0:02:56.2]} 4... Nb6 {[%clk 0:02:45.7]} 5. Bb3 {[%clk 0:02:56.8]}
5... Nc6 {[%clk 0:02:46.4]} 6. Nf3 {[%clk 0:02:56.1]} 6... d6 {[%clk 0:02:46.7]}
7. O-O {[%clk 0:02:53.4]} 7... dxe5 {[%clk 0:02:39.7]} 8. h3 {[%clk 0:02:30.8]}
8... Bf5 {[%clk 0:02:12.8]} 9. Re1 {[%clk 0:02:25.8]} 9... c4 {[%clk 0:02:05.1]}
10. Bc2 {[%clk 0:02:24.3]} 10... Bxc2 {[%clk 0:02:02.4]} 11. Qxc2 {[%clk
0:02:25.2]} 11... Qd5 {[%clk 0:02:01.5]} 12. b3 {[%clk 0:02:16.7]} 12... e6
{[%clk 0:01:55.4]} 13. Na3 {[%clk 0:02:14.1]} 13... Bd6 {[%clk 0:01:30.1]} 14.
Nxc4 {[%clk 0:02:00.2]} 14... Nxc4 {[%clk 0:01:28.9]} 15. bxc4 {[%clk
0:02:01.1]} 15... Qxc4 {[%clk 0:01:29.4]} 16. d3 {[%clk 0:01:54.3]} 16... Qd5
{[%clk 0:01:22.6]} 17. c4 {[%clk 0:01:50.3]} 17... Qa5 {[%clk 0:01:19]} 18. Bd2
{[%clk 0:01:35.2]} 18... Qc7 {[%clk 0:01:11.3]} 19. c5 {[%clk 0:01:25.6]} 19...
Be7 {[%clk 0:01:04]} 20. Qc4 {[%clk 0:00:54.1]} 20... O-O {[%clk 0:00:59.1]} 21.
Bg5 {[%clk 0:00:39.6]} 21... Bxg5 {[%clk 0:00:50.2]} 22. Nxg5 {[%clk 0:00:40.5]}
22... Rad8 {[%clk 0:00:41.9]} 23. Ne4 {[%clk 0:00:28.9]} 23... Rd4 {[%clk
0:00:40]} 24. Qc3 {[%clk 0:00:26.8]} 24... Ne7 {[%clk 0:00:35.1]} 25. Rac1
{[%clk 0:00:23.4]} 25... Nf5 {[%clk 0:00:31.1]} 26. g4 {[%clk 0:00:21.1]} 26...
Nh4 {[%clk 0:00:30.6]} 27. Re3 {[%clk 0:00:19.2]} 27... Rfd8 {[%clk 0:00:28.6]}
28. Nd6 {[%clk 0:00:19.4]} 28... Qc6 {[%clk 0:00:28.2]} 29. f3 {[%clk
0:00:14.3]} 29... Nxf3+ {[%clk 0:00:24.9]} 30. Kf2 {[%clk 0:00:14.4]} 30... Ng5
{[%clk 0:00:25.4]} 31. Kg3 {[%clk 0:00:05.3]} 31... h5 {[%clk 0:00:12.5]} 32.
gxh5 {[%clk 0:00:04.2]} 32... f5 {[%clk 0:00:12.6]} 33. Rxe5 {[%clk 0:00:02]}
33... Qf3+ {[%clk 0:00:12.1]} 34. Kh2 {[%clk 0:00:02.2]} 34... Qxh3+ {[%clk
0:00:12.8]} 35. Kg1 {[%clk 0:00:02.7]} 35... Rg4+ {[%clk 0:00:11.2]} 36. Kf2
{[%clk 0:00:02.6]} 36... Rg2+ {[%clk 0:00:11.8]} 37. Ke1 {[%clk 0:00:01.9]}
37... Qh1# {[%clk 0:00:12.7]} 0-1

[Event "Early-Titled-Tuesday-Blitz-April-23-2024"]
[Site "Chess.com"]
[Date "2024.04.23"]
[Round "7"]
[White "rikchessmx"]
[Black "JoliyRoger"]
[Result "1-0"]
[WhiteElo "2261"]
[BlackElo "2400"]
[TimeControl "180+1"]
[EndTime "9:20:02 PDT"]
[Termination "rikchessmx won on time"]

1. e4 {[%clk 0:02:41.6]} 1... c5 {[%clk 0:02:56.2]} 2. Nf3 {[%clk 0:02:41.4]}
2... d6 {[%clk 0:02:56.1]} 3. d4 {[%clk 0:02:42]} 3... cxd4 {[%clk 0:02:56.8]}
4. Nxd4 {[%clk 0:02:42.9]} 4... Nf6 {[%clk 0:02:57.2]} 5. Nc3 {[%clk 0:02:43.8]}
5... a6 {[%clk 0:02:56.7]} 6. f4 {[%clk 0:02:44.3]} 6... e6 {[%clk 0:02:54.7]}
7. Qf3 {[%clk 0:02:41.5]} 7... Qc7 {[%clk 0:02:54.6]} 8. Be3 {[%clk 0:02:41.3]}
8... Be7 {[%clk 0:02:54.8]} 9. g4 {[%clk 0:02:39.6]} 9... e5 {[%clk 0:02:47.4]}
10. Nf5 {[%clk 0:02:37.7]} 10... Bxf5 {[%clk 0:02:47.6]} 11. gxf5 {[%clk
0:02:37.3]} 11... Nbd7 {[%clk 0:02:43.1]} 12. O-O-O {[%clk 0:02:34.1]} 12...
exf4 {[%clk 0:02:37]} 13. Bxf4 {[%clk 0:02:33.9]} 13... Ne5 {[%clk 0:02:37.6]}
14. Qh3 {[%clk 0:02:28.1]} 14... Rc8 {[%clk 0:02:28.2]} 15. Kb1 {[%clk
0:02:26.8]} 15... b5 {[%clk 0:02:27.2]} 16. a3 {[%clk 0:02:26.7]} 16... Kf8
{[%clk 0:02:04.8]} 17. Be2 {[%clk 0:02:22.7]} 17... Qc6 {[%clk 0:01:57.3]} 18.
Rd4 {[%clk 0:02:17.5]} 18... h6 {[%clk 0:01:45.1]} 19. Rhd1 {[%clk 0:02:15.9]}
19... Qb7 {[%clk 0:01:35.9]} 20. Qg2 {[%clk 0:02:05.7]} 20... Rc5 {[%clk
0:01:33.2]} 21. Rg1 {[%clk 0:01:56.5]} 21... Ne8 {[%clk 0:01:24.6]} 22. Nd5
{[%clk 0:01:52]} 22... Bg5 {[%clk 0:01:21.6]} 23. Bxg5 {[%clk 0:01:39.1]} 23...
hxg5 {[%clk 0:01:20.9]} 24. Qxg5 {[%clk 0:01:39]} 24... Rxh2 {[%clk 0:01:18.5]}
25. f6 {[%clk 0:01:27.5]} 25... g6 {[%clk 0:01:12.6]} 26. Rg2 {[%clk 0:01:26.3]}
26... Rh1+ {[%clk 0:00:52.1]} 27. Rg1 {[%clk 0:01:21.7]} 27... Rh2 {[%clk
0:00:51.9]} 28. Rd2 {[%clk 0:00:44.2]} 28... Nd7 {[%clk 0:00:44.3]} 29. Bxb5
{[%clk 0:00:35.2]} 29... Rxb5 {[%clk 0:00:36.4]} 30. Rxh2 {[%clk 0:00:21.3]}
30... Rxb2+ {[%clk 0:00:30.6]} 31. Kc1 {[%clk 0:00:21.2]} 31... Nexf6 {[%clk
0:00:29.7]} 32. Qh6+ {[%clk 0:00:14.2]} 32... Ke8 {[%clk 0:00:24.9]} 33. Qh8+
{[%clk 0:00:12.5]} 1-0

[Event "Early-Titled-Tuesday-Blitz-April-23-2024"]
[Site "Chess.com"]
[Date "2024.04.23"]
[Round "7"]
[White "Schattman"]
[Black "rionelG"]
[Result "1-0"]
[WhiteElo "2458"]
[BlackElo "2208"]
[TimeControl "180+1"]
[EndTime "9:20:03 PDT"]
[Termination "Schattman won on time"]

1. e4 {[%clk 0:03:00.9]} 1... c5 {[%clk 0:02:59.7]} 2. c3 {[%clk 0:02:59.9]}
2... d5 {[%clk 0:02:57.3]} 3. exd5 {[%clk 0:02:59.2]} 3... Qxd5 {[%clk
0:02:51.9]} 4. Nf3 {[%clk 0:02:59.6]} 4... Nc6 {[%clk 0:02:52.1]} 5. d4 {[%clk
0:02:59.4]} 5... Nf6 {[%clk 0:02:51.1]} 6. Be3 {[%clk 0:02:58]} 6... cxd4 {[%clk
0:02:50.8]} 7. Nxd4 {[%clk 0:02:57.3]} 7... e5 {[%clk 0:02:49.5]} 8. Nxc6 {[%clk
0:02:57.1]} 8... Qxd1+ {[%clk 0:02:44.7]} 9. Kxd1 {[%clk 0:02:58]} 9... bxc6
{[%clk 0:02:44.6]} 10. Nd2 {[%clk 0:02:58.1]} 10... Ng4 {[%clk 0:02:40.2]} 11.
Bc4 {[%clk 0:02:56.9]} 11... Nxe3+ {[%clk 0:02:39.8]} 12. fxe3 {[%clk
0:02:57.7]} 12... Bg4+ {[%clk 0:02:38.5]} 13. Be2 {[%clk 0:02:56]} 13... Be6
{[%clk 0:02:33.3]} 14. Bc4 {[%clk 0:02:49.6]} 14... Bg4+ {[%clk 0:02:28]} 15.
Be2 {[%clk 0:02:48.8]} 15... Bf5 {[%clk 0:02:23]} 16. Bf3 {[%clk 0:02:44.9]}
16... Kd7 {[%clk 0:02:21.7]} 17. Rf1 {[%clk 0:02:40.4]} 17... Be6 {[%clk
0:02:13.3]} 18. Ke2 {[%clk 0:02:28.4]} 18... f5 {[%clk 0:02:07.7]} 19. e4 {[%clk
0:02:27.4]} 19... f4 {[%clk 0:02:06.4]} 20. Rfd1 {[%clk 0:02:27.1]} 20... Kc7
{[%clk 0:02:05.2]} 21. h3 {[%clk 0:02:15.2]} 21... g5 {[%clk 0:01:59.8]} 22. Bg4
{[%clk 0:02:14.6]} 22... Bxg4+ {[%clk 0:01:20.9]} 23. hxg4 {[%clk 0:02:15.5]}
23... h5 {[%clk 0:01:20.8]} 24. Rh1 {[%clk 0:02:09.9]} 24... Bg7 {[%clk
0:01:11.8]} 25. Rxh5 {[%clk 0:01:50.8]} 25... Rxh5 {[%clk 0:01:08.2]} 26. gxh5
{[%clk 0:01:50.9]} 26... Rh8 {[%clk 0:01:06.1]} 27. Rh1 {[%clk 0:01:49.8]} 27...
g4 {[%clk 0:01:02.4]} 28. Nc4 {[%clk 0:01:47.3]} 28... Bf6 {[%clk 0:01:00.6]}
29. h6 {[%clk 0:01:45.7]} 29... Kd7 {[%clk 0:00:55.7]} 30. Rh5 {[%clk
0:01:44.3]} 30... Ke6 {[%clk 0:00:55.3]} 31. h7 {[%clk 0:01:44.6]} 31... Rb8
{[%clk 0:00:43.6]} 32. b3 {[%clk 0:01:39.2]} 32... Re8 {[%clk 0:00:39.2]} 33.
Rh6 {[%clk 0:01:34.9]} 33... Rh8 {[%clk 0:00:34.1]} 34. Na5 {[%clk 0:01:29.7]}
34... Rc8 {[%clk 0:00:18.6]} 35. Nxc6 {[%clk 0:01:20.9]} 35... Kf7 {[%clk
0:00:15.3]} 36. h8=Q {[%clk 0:00:59.9]} 36... Rxh8 {[%clk 0:00:13.5]} 37. Rxh8
{[%clk 0:00:55.3]} 37... Bxh8 {[%clk 0:00:14.4]} 38. Nxa7 {[%clk 0:00:55.2]}
38... Kf6 {[%clk 0:00:14.3]} 39. Nc8 {[%clk 0:00:49.1]} 39... Kg5 {[%clk
0:00:13.3]} 40. Nd6 {[%clk 0:00:49.2]} 40... Bf6 {[%clk 0:00:10.9]} 41. Nf5
{[%clk 0:00:46]} 41... Bd8 {[%clk 0:00:09.9]} 42. b4 {[%clk 0:00:42.8]} 42... g3
{[%clk 0:00:03.7]} 43. Kf3 {[%clk 0:00:41.9]} 43... Bb6 {[%clk 0:00:03.7]} 44.
c4 {[%clk 0:00:41.7]} 44... Bf2 {[%clk 0:00:02.1]} 45. c5 {[%clk 0:00:39.5]}
45... Kf6 {[%clk 0:00:02.5]} 46. a4 {[%clk 0:00:36.2]} 1-0

[Event "Early-Titled-Tuesday-Blitz-April-23-2024"]
[Site "Chess.com"]
[Date "2024.04.23"]
[Round "7"]
[White "alexrustemov"]
[Black "Shankland"]
[Result "0-1"]
[WhiteElo "2873"]
[BlackElo "3062"]
[TimeControl "180+1"]
[EndTime "9:20:04 PDT"]
[Termination "Shankland won on time"]

1. d4 {[%clk 0:03:00.9]} 1... Nf6 {[%clk 0:03:00.3]} 2. c4 {[%clk 0:03:01.2]}
2... g6 {[%clk 0:03:00.8]} 3. Nf3 {[%clk 0:03:01.4]} 3... Bg7 {[%clk 0:03:00.5]}
4. g3 {[%clk 0:03:01.8]} 4... c6 {[%clk 0:02:59.3]} 5. Bg2 {[%clk 0:03:01.3]}
5... d5 {[%clk 0:02:59.9]} 6. cxd5 {[%clk 0:03:00.3]} 6... cxd5 {[%clk 0:03:00]}
7. Ne5 {[%clk 0:03:00.3]} 7... O-O {[%clk 0:02:59.9]} 8. Nc3 {[%clk 0:03:00.2]}
8... Nc6 {[%clk 0:03:00.1]} 9. O-O {[%clk 0:02:59.8]} 9... e6 {[%clk 0:03:00.2]}
10. Bf4 {[%clk 0:02:48.7]} 10... Nh5 {[%clk 0:02:59.6]} 11. Nxc6 {[%clk
0:02:44.4]} 11... bxc6 {[%clk 0:02:59.6]} 12. Be3 {[%clk 0:02:43.5]} 12... Rb8
{[%clk 0:02:38]} 13. Qd2 {[%clk 0:02:42.9]} 13... c5 {[%clk 0:02:35.5]} 14. Rfd1
{[%clk 0:02:33.3]} 14... cxd4 {[%clk 0:02:27.3]} 15. Bxd4 {[%clk 0:02:32.9]}
15... Bxd4 {[%clk 0:02:26.8]} 16. Qxd4 {[%clk 0:02:33.1]} 16... Qb6 {[%clk
0:02:27.2]} 17. Qxb6 {[%clk 0:01:49]} 17... Rxb6 {[%clk 0:02:28.1]} 18. b3
{[%clk 0:01:43.6]} 18... Ba6 {[%clk 0:02:11.7]} 19. e4 {[%clk 0:01:40.8]} 19...
Rc6 {[%clk 0:02:04.2]} 20. Na4 {[%clk 0:01:31.3]} 20... dxe4 {[%clk 0:02:01]}
21. Bxe4 {[%clk 0:01:32.2]} 21... Rc7 {[%clk 0:02:01.4]} 22. Rac1 {[%clk
0:01:26.8]} 22... Rfc8 {[%clk 0:02:00.8]} 23. Rxc7 {[%clk 0:01:25.7]} 23... Rxc7
{[%clk 0:02:01.7]} 24. Bd3 {[%clk 0:00:49.2]} 24... Bb7 {[%clk 0:01:56]} 25. Kf1
{[%clk 0:00:41.3]} 25... Nf6 {[%clk 0:01:54.2]} 26. Ke2 {[%clk 0:00:40.7]} 26...
Kf8 {[%clk 0:01:49]} 27. Rd2 {[%clk 0:00:39.4]} 27... Ke7 {[%clk 0:01:25.4]} 28.
Rc2 {[%clk 0:00:39.1]} 28... Rxc2+ {[%clk 0:01:25.3]} 29. Bxc2 {[%clk 0:00:40]}
29... Kd6 {[%clk 0:01:25.8]} 30. b4 {[%clk 0:00:36.9]} 30... Bc6 {[%clk
0:01:21.1]} 31. Nc3 {[%clk 0:00:36.3]} 31... h5 {[%clk 0:01:18.1]} 32. h4 {[%clk
0:00:34.7]} 32... Ke5 {[%clk 0:01:14.7]} 33. Kd2 {[%clk 0:00:25.8]} 33... Kd4
{[%clk 0:01:12.6]} 34. Bb3 {[%clk 0:00:24]} 34... Bd5 {[%clk 0:01:03.3]} 35.
Ne2+ {[%clk 0:00:22.3]} 35... Ke4 {[%clk 0:01:02.7]} 36. Nc3+ {[%clk 0:00:15.7]}
36... Kd4 {[%clk 0:00:51.8]} 37. Ne2+ {[%clk 0:00:15.5]} 37... Ke5 {[%clk
0:00:52.4]} 38. Bxd5 {[%clk 0:00:14.3]} 38... Nxd5 {[%clk 0:00:52.1]} 39. a3
{[%clk 0:00:14.2]} 39... Ke4 {[%clk 0:00:51.2]} 40. Nc3+ {[%clk 0:00:13.6]}
40... Kd4 {[%clk 0:00:51.5]} 41. Nxd5 {[%clk 0:00:13.2]} 41... exd5 {[%clk
0:00:51.2]} 42. Kc2 {[%clk 0:00:12.6]} 42... Kc4 {[%clk 0:00:51.8]} 43. Kd2
{[%clk 0:00:08.7]} 43... Kb3 {[%clk 0:00:51.1]} 44. Kd3 {[%clk 0:00:04.3]} 44...
Kxa3 {[%clk 0:00:51.3]} 45. Kc3 {[%clk 0:00:04.4]} 45... Ka4 {[%clk 0:00:51.4]}
46. f4 {[%clk 0:00:03.9]} 46... Kb5 {[%clk 0:00:50.8]} 47. f5 {[%clk 0:00:03.2]}
47... gxf5 {[%clk 0:00:50.2]} 48. Kd4 {[%clk 0:00:03.6]} 48... Kxb4 {[%clk
0:00:50.2]} 49. Kxd5 {[%clk 0:00:02.6]} 49... a5 {[%clk 0:00:50.8]} 50. Ke5
{[%clk 0:00:02.9]} 50... a4 {[%clk 0:00:51.4]} 0-1

[Event "Early-Titled-Tuesday-Blitz-April-23-2024"]
[Site "Chess.com"]
[Date "2024.04.23"]
[Round "7"]
[White "Fy_Rakotomaharo"]
[Black "GMKrikor"]
[Result "0-1"]
[WhiteElo "2722"]
[BlackElo "2900"]
[TimeControl "180+1"]
[EndTime "9:20:05 PDT"]
[Termination "GMKrikor won on time"]

1. e4 {[%clk 0:03:00.9]} 1... c5 {[%clk 0:02:59.6]} 2. a4 {[%clk 0:03:00.5]}
2... Nc6 {[%clk 0:02:57.5]} 3. Bb5 {[%clk 0:03:00.2]} 3... Nf6 {[%clk
0:02:56.2]} 4. d3 {[%clk 0:02:55.7]} 4... Nd4 {[%clk 0:02:31.2]} 5. c3 {[%clk
0:02:55.1]} 5... Nxb5 {[%clk 0:02:18.9]} 6. axb5 {[%clk 0:02:56]} 6... g6 {[%clk
0:02:10.8]} 7. c4 {[%clk 0:02:47.6]} 7... Bg7 {[%clk 0:02:10.4]} 8. Nc3 {[%clk
0:02:48.2]} 8... O-O {[%clk 0:02:10]} 9. Be3 {[%clk 0:02:41.7]} 9... d6 {[%clk
0:02:10]} 10. h3 {[%clk 0:02:38.9]} 10... e5 {[%clk 0:01:53.4]} 11. Nge2 {[%clk
0:02:34.1]} 11... Ne8 {[%clk 0:01:50.2]} 12. O-O {[%clk 0:02:33.7]} 12... f5
{[%clk 0:01:50.3]} 13. exf5 {[%clk 0:02:22.3]} 13... gxf5 {[%clk 0:01:43.9]} 14.
f4 {[%clk 0:02:21.9]} 14... b6 {[%clk 0:01:35.1]} 15. Ng3 {[%clk 0:02:07.7]}
15... Rf7 {[%clk 0:01:02.3]} 16. Nh5 {[%clk 0:01:23.9]} 16... Bb7 {[%clk
0:00:59.2]} 17. Qe1 {[%clk 0:01:09.4]} 17... Nf6 {[%clk 0:00:48.4]} 18. Qh4
{[%clk 0:01:02.2]} 18... Nxh5 {[%clk 0:00:42.3]} 19. Qxh5 {[%clk 0:01:02.5]}
19... Qd7 {[%clk 0:00:38.4]} 20. Rf2 {[%clk 0:00:57.1]} 20... Kh8 {[%clk
0:00:35.5]} 21. Kh2 {[%clk 0:00:49.1]} 21... Qe6 {[%clk 0:00:26.6]} 22. Raf1
{[%clk 0:00:10]} 22... Rg8 {[%clk 0:00:25.6]} 23. Kg1 {[%clk 0:00:07.6]} 23...
exf4 {[%clk 0:00:21.2]} 24. Bxf4 {[%clk 0:00:08.3]} 24... Bd4 {[%clk 0:00:21.4]}
25. Kh2 {[%clk 0:00:08.9]} 25... Bxf2 {[%clk 0:00:17.7]} 26. Rxf2 {[%clk
0:00:09.8]} 26... Qg6 {[%clk 0:00:15.8]} 27. Qe2 {[%clk 0:00:08.1]} 27... Rfg7
{[%clk 0:00:16.2]} 28. g3 {[%clk 0:00:08.2]} 28... Re8 {[%clk 0:00:14.8]} 29.
Qd2 {[%clk 0:00:07.8]} 29... Rge7 {[%clk 0:00:15]} 30. Nd5 {[%clk 0:00:07.3]}
30... Bxd5 {[%clk 0:00:14.1]} 31. cxd5 {[%clk 0:00:08.2]} 31... Qh5 {[%clk
0:00:09.2]} 32. Bxd6 {[%clk 0:00:03.7]} 32... Re2 {[%clk 0:00:07.9]} 33. Qc3+
{[%clk 0:00:03.4]} 33... Kg8 {[%clk 0:00:06.8]} 34. Rxe2 {[%clk 0:00:03.6]}
34... Qxe2+ {[%clk 0:00:06.5]} 35. Kg1 {[%clk 0:00:04.1]} 35... Qd1+ {[%clk
0:00:06.6]} 36. Kf2 {[%clk 0:00:02.4]} 36... Re2+ {[%clk 0:00:06.7]} 0-1

[Event "Early-Titled-Tuesday-Blitz-April-23-2024"]
[Site "Chess.com"]
[Date "2024.04.23"]
[Round "7"]
[White "kiwibobo"]
[Black "Eliwood44"]
[Result "0-1"]
[WhiteElo "2308"]
[BlackElo "2467"]
[TimeControl "180+1"]
[EndTime "9:20:06 PDT"]
[Termination "Eliwood44 won by checkmate"]

1. e4 {[%clk 0:03:00]} 1... e5 {[%clk 0:02:57.7]} 2. Nf3 {[%clk 0:03:00.4]} 2...
Nc6 {[%clk 0:02:44.9]} 3. Bb5 {[%clk 0:03:00.6]} 3... Nf6 {[%clk 0:02:44.9]} 4.
d3 {[%clk 0:03:00.5]} 4... d6 {[%clk 0:02:44.2]} 5. c3 {[%clk 0:03:00.5]} 5...
Bd7 {[%clk 0:02:43.4]} 6. O-O {[%clk 0:02:58.9]} 6... g6 {[%clk 0:02:43.8]} 7.
h3 {[%clk 0:02:56.9]} 7... Bg7 {[%clk 0:02:44.2]} 8. Re1 {[%clk 0:02:56.9]} 8...
O-O {[%clk 0:02:44.4]} 9. Be3 {[%clk 0:02:56]} 9... Nh5 {[%clk 0:02:41.9]} 10.
Nbd2 {[%clk 0:02:53.9]} 10... h6 {[%clk 0:02:41.9]} 11. a4 {[%clk 0:02:48.2]}
11... Kh7 {[%clk 0:02:41.4]} 12. d4 {[%clk 0:02:39.6]} 12... Qe8 {[%clk
0:02:40.7]} 13. Bc4 {[%clk 0:02:32.2]} 13... f5 {[%clk 0:02:39.2]} 14. exf5
{[%clk 0:02:31.7]} 14... gxf5 {[%clk 0:02:39.1]} 15. dxe5 {[%clk 0:02:25.5]}
15... dxe5 {[%clk 0:02:39.1]} 16. Bc5 {[%clk 0:02:24.9]} 16... Rf6 {[%clk
0:02:29.9]} 17. Bd5 {[%clk 0:02:00.5]} 17... Rg6 {[%clk 0:02:26.4]} 18. Nh4
{[%clk 0:01:52.2]} 18... Rf6 {[%clk 0:02:17.2]} 19. Nhf3 {[%clk 0:01:52.5]}
19... e4 {[%clk 0:02:14.1]} 20. Nd4 {[%clk 0:01:48.3]} 20... Nf4 {[%clk
0:02:06]} 21. Bxe4 {[%clk 0:01:10.7]} 21... fxe4 {[%clk 0:01:58.8]} 22. Nxe4
{[%clk 0:01:11.6]} 22... Rg6 {[%clk 0:01:55.4]} 23. Nf6+ {[%clk 0:01:02]} 23...
Bxf6 {[%clk 0:01:51.3]} 24. Rxe8 {[%clk 0:01:02.9]} 24... Rxe8 {[%clk
0:01:45.2]} 25. g3 {[%clk 0:00:47.4]} 25... Nxh3+ {[%clk 0:01:44]} 26. Kh2
{[%clk 0:00:47.2]} 26... Nxf2 {[%clk 0:01:42.1]} 27. Qf3 {[%clk 0:00:41.6]}
27... Ng4+ {[%clk 0:01:39.5]} 28. Kg1 {[%clk 0:00:41.9]} 28... Nce5 {[%clk
0:01:32.4]} 29. Qxb7 {[%clk 0:00:38.8]} 29... Bc8 {[%clk 0:01:16.7]} 30. Qxc7+
{[%clk 0:00:37.3]} 30... Rg7 {[%clk 0:01:16.4]} 31. Qd6 {[%clk 0:00:32.9]} 31...
Nf7 {[%clk 0:01:06]} 32. Qf4 {[%clk 0:00:30.2]} 32... Bg5 {[%clk 0:01:04]} 33.
Qf3 {[%clk 0:00:20.4]} 33... Re3 {[%clk 0:00:58.2]} 34. Qf1 {[%clk 0:00:17.7]}
34... Rxg3+ {[%clk 0:00:57.1]} 35. Kh1 {[%clk 0:00:16.8]} 35... Rh3+ {[%clk
0:00:52.7]} 36. Qxh3 {[%clk 0:00:16.1]} 36... Nf2+ {[%clk 0:00:52.7]} 37. Kg2
{[%clk 0:00:16.7]} 37... Nxh3 {[%clk 0:00:50.9]} 38. Bxa7 {[%clk 0:00:16.9]}
38... Bc1+ {[%clk 0:00:47]} 39. Kf3 {[%clk 0:00:14.9]} 39... Bxb2 {[%clk
0:00:46]} 40. Rb1 {[%clk 0:00:13.5]} 40... Bxc3 {[%clk 0:00:42.8]} 41. Nb5
{[%clk 0:00:13.6]} 41... Bg4+ {[%clk 0:00:41.5]} 42. Ke4 {[%clk 0:00:13.3]}
42... Bf6 {[%clk 0:00:35.5]} 43. Be3 {[%clk 0:00:12.1]} 43... Nfg5+ {[%clk
0:00:34.8]} 44. Kd5 {[%clk 0:00:11.4]} 44... Bf3+ {[%clk 0:00:33.9]} 45. Kd6
{[%clk 0:00:10.6]} 45... Ne4+ {[%clk 0:00:33]} 46. Ke6 {[%clk 0:00:09.8]} 46...
Bg5 {[%clk 0:00:28.1]} 47. Bd4 {[%clk 0:00:08.6]} 47... Re7+ {[%clk 0:00:25.7]}
48. Kf5 {[%clk 0:00:09]} 48... Ng3# {[%clk 0:00:21.9]} 0-1

[Event "Early-Titled-Tuesday-Blitz-April-23-2024"]
[Site "Chess.com"]
[Date "2024.04.23"]
[Round "7"]
[White "GelmanAlexander"]
[Black "GMAneta"]
[Result "0-1"]
[WhiteElo "2628"]
[BlackElo "2510"]
[TimeControl "180+1"]
[EndTime "9:20:10 PDT"]
[Termination "GMAneta won on time"]

1. d4 {[%clk 0:03:00.9]} 1... Nf6 {[%clk 0:02:57.6]} 2. Nc3 {[%clk 0:03:00.9]}
2... d5 {[%clk 0:02:57.1]} 3. Bf4 {[%clk 0:03:00.7]} 3... Bf5 {[%clk 0:02:56.5]}
4. f3 {[%clk 0:03:00.7]} 4... e6 {[%clk 0:02:56.6]} 5. g4 {[%clk 0:03:00.9]}
5... Bg6 {[%clk 0:02:56.7]} 6. h4 {[%clk 0:03:01.6]} 6... h5 {[%clk 0:02:56.7]}
7. g5 {[%clk 0:03:01.7]} 7... Ng8 {[%clk 0:02:56.7]} 8. e4 {[%clk 0:03:00.6]}
8... Bb4 {[%clk 0:02:56.4]} 9. Be5 {[%clk 0:02:22.2]} 9... dxe4 {[%clk
0:02:50.5]} 10. Bxg7 {[%clk 0:02:13]} 10... Rh7 {[%clk 0:02:47.8]} 11. Be5
{[%clk 0:02:13.2]} 11... Nc6 {[%clk 0:02:46.8]} 12. Bb5 {[%clk 0:02:13]} 12...
Ne7 {[%clk 0:02:45.4]} 13. a3 {[%clk 0:02:04.8]} 13... Bxc3+ {[%clk 0:02:44.2]}
14. bxc3 {[%clk 0:02:05.7]} 14... a6 {[%clk 0:02:44.5]} 15. Bxc6+ {[%clk
0:02:05.1]} 15... Nxc6 {[%clk 0:02:45.4]} 16. Bf6 {[%clk 0:02:05.2]} 16... Qd5
{[%clk 0:02:45.5]} 17. Rh3 {[%clk 0:01:51.8]} 17... Bf5 {[%clk 0:02:42.4]} 18.
Rg3 {[%clk 0:01:49.6]} 18... b5 {[%clk 0:02:22.8]} 19. Kf2 {[%clk 0:01:38.4]}
19... Kf8 {[%clk 0:02:13.5]} 20. a4 {[%clk 0:01:35.2]} 20... Re8 {[%clk
0:02:12.4]} 21. axb5 {[%clk 0:01:34.7]} 21... axb5 {[%clk 0:02:13.3]} 22. fxe4
{[%clk 0:01:31.1]} 22... Qxe4 {[%clk 0:02:09.3]} 23. Nf3 {[%clk 0:01:17.9]}
23... Bg4 {[%clk 0:02:05.1]} 24. Qd3 {[%clk 0:01:14]} 24... Bxf3 {[%clk
0:01:55.9]} 25. Qxf3 {[%clk 0:01:03.7]} 25... Qxc2+ {[%clk 0:01:54.8]} 26. Kg1
{[%clk 0:01:04.2]} 26... Ne7 {[%clk 0:01:51.9]} 27. Ra8 {[%clk 0:00:23]} 27...
Nd5 {[%clk 0:01:47]} 28. g6 {[%clk 0:00:19.8]} 28... fxg6 {[%clk 0:01:40.5]} 29.
Bg7+ {[%clk 0:00:12.2]} 29... Ke7 {[%clk 0:01:37.1]} 30. Rxe8+ {[%clk
0:00:13.1]} 30... Kxe8 {[%clk 0:01:37.1]} 31. Qf8+ {[%clk 0:00:11]} 31... Kd7
{[%clk 0:01:36.9]} 32. Qg8 {[%clk 0:00:10]} 32... Qc1+ {[%clk 0:01:33.7]} 33.
Kh2 {[%clk 0:00:10.4]} 33... Qd2+ {[%clk 0:01:33.2]} 34. Rg2 {[%clk 0:00:10.4]}
34... Qf4+ {[%clk 0:01:32.5]} 35. Kh1 {[%clk 0:00:11]} 35... Qxh4+ {[%clk
0:01:32.1]} 36. Kg1 {[%clk 0:00:11.3]} 36... Qe1+ {[%clk 0:01:31.8]} 37. Kh2
{[%clk 0:00:12.2]} 37... Qh4+ {[%clk 0:01:31.6]} 38. Kg1 {[%clk 0:00:12.8]}
38... Rxg7 {[%clk 0:01:23.1]} 39. Qxg7+ {[%clk 0:00:12.6]} 39... Ne7 {[%clk
0:01:23.4]} 40. Qe5 {[%clk 0:00:11.8]} 40... Qh3 {[%clk 0:01:17.3]} 41. Re2
{[%clk 0:00:10.7]} 41... c6 {[%clk 0:01:14.4]} 42. Rg2 {[%clk 0:00:08.8]} 42...
Qxc3 {[%clk 0:01:13.6]} 43. Rf2 {[%clk 0:00:06]} 43... Qc1+ {[%clk 0:01:12.1]}
44. Kg2 {[%clk 0:00:05.9]} 44... Nf5 {[%clk 0:01:10.6]} 45. Qf6 {[%clk
0:00:04.8]} 45... Qe3 {[%clk 0:01:01.3]} 46. Qf7+ {[%clk 0:00:04]} 46... Kd6
{[%clk 0:01:01.6]} 47. Qf8+ {[%clk 0:00:04.6]} 47... Kd5 {[%clk 0:01:00.3]} 48.
Qd8+ {[%clk 0:00:04.9]} 48... Ke4 {[%clk 0:01:00.6]} 49. Qf6 {[%clk 0:00:03.1]}
49... Qg3+ {[%clk 0:00:57.6]} 50. Kf1 {[%clk 0:00:03.6]} 50... Ne3+ {[%clk
0:00:53.2]} 51. Ke2 {[%clk 0:00:03.5]} 51... Qg4+ {[%clk 0:00:53.4]} 52. Rf3
{[%clk 0:00:04]} 52... Qg2+ {[%clk 0:00:49]} 53. Rf2 {[%clk 0:00:04.4]} 53...
Qg4+ {[%clk 0:00:49]} 54. Rf3 {[%clk 0:00:05]} 54... Nc4 {[%clk 0:00:48.7]} 0-1